fUST/lending_fUST_20250727
["ID","MTS","AMOUNT","RATE_DAILY","PERIOD"]
[375275066,1753612260113,-151.0,0.00023287,7]
[375275067,1753612260123,-2214.31,0.00023287,2]
[375275068,1753612260132,-460.0,0.00023287,2]
[375275069,1753612260141,-599.1,0.00023287,2]
[375275070,1753612260150,-779.87,0.00023287,2]
[375275071,1753612260160,-1073.35,0.00023287,2]
[375275072,1753612260168,-520.92,0.00023287,2]
[375275073,1753612260178,-2106.4,0.00023287,2]
[375275074,1753612260187,-1603.91,0.00023287,2]
[375275075,1753612260196,-2725.78,0.00023287,2]
[375275076,1753612260206,-690.0,0.00023287,2]
[375275077,1753612260215,-1525.37,0.00023287,2]
[375275078,1753612260224,-982.37,0.00023287,2]
[375275079,1753612260234,-151.0,0.00023287,7]
[375275080,1753612260245,-2043.29,0.00023287,2]
[375275081,1753612260255,-2245.93,0.00023287,2]
[375275082,1753612260266,-183.86961088,0.00023287,2]
[375275083,1753612260275,-460.0,0.00023287,2]
[375275084,1753612260286,-460.0,0.00023287,2]
[375275085,1753612260298,-460.0,0.00023287,2]
[375275086,1753612260308,-2233.32,0.00023287,2]
[375275087,1753612260318,-635.65,0.00023287,2]
[375275088,1753612260328,-722.74,0.00023287,2]
[375275089,1753612260338,-627.07,0.00023287,2]
[375275090,1753612260347,-319.188211,0.00023287,7]
[375275091,1753612260356,-570.74,0.00023287,2]
[375275092,1753612260365,-319.188211,0.00023287,7]
[375275093,1753612260374,-562.3,0.00023287,2]
[375275094,1753612260383,-463.36,0.00023287,2]
[375275095,1753612260393,-460.0,0.00023287,2]
[375275096,1753612260404,-800.65,0.00023287,2]
[375275097,1753612260413,-482.48,0.00023287,2]
[375275098,1753612260422,-513.13,0.00023287,2]
[375275099,1753612260431,-692.74,0.00023287,2]
[375275100,1753612260441,-460.0,0.00023287,2]
[375275101,1753612260450,-522.56,0.00023287,2]
[375275102,1753612260460,-912.91,0.00023287,2]
[375275103,1753612260469,-2532.53,0.00023287,2]
[375275104,1753612260478,-485.0,0.00023288,2]
[375275105,1753612260488,-459.0,0.00023288,2]
[375275106,1753612260498,-21410.4,0.000233,2]
[375275107,1753612260507,-151.0,0.000233,7]
[375275108,1753612260516,-3530.03203711,0.00023314,9]
[375275109,1753612260525,-2377.99961766,0.00023321,2]
[375275110,1753612260535,-722.93,0.00023334,6]
[375275111,1753612260547,-362.54,0.00023429,2]
[375275112,1753612260556,-722.93,0.00023434,5]
[375275113,1753612260565,-209.06,0.00023442,2]
[375275114,1753612260575,-151.0,0.0002345,6]
[375275115,1753612260585,-6076.42655576,0.00023461,2]
[375275116,1753612260594,-500.0,0.00023475,2]
[375275117,1753612260604,-3530.03203711,0.00023486,9]
[375275118,1753612260613,-206.0,0.000235,2]
[375275119,1753612260623,-160.0,0.00023509,7]
[375275120,1753612260633,-722.93,0.00023534,3]
[375275121,1753612260642,-622.80434661,0.00023558,2]
[375275122,1753612260651,-563.3,0.00023561,2]
[375275123,1753612260661,-460.0,0.00023561,2]
[375275124,1753612260670,-460.0,0.00023561,2]
[375275125,1753612260681,-264.503526,0.00023561,7]
[375275126,1753612260692,-264.503526,0.00023561,7]
[375275127,1753612260702,-838.11,0.00023561,2]
[375275128,1753612260711,-590.56,0.00023561,2]
[375275129,1753612260720,-716.54,0.00023561,2]
[375275130,1753612260730,-1103.32,0.00023561,2]
[375275131,1753612260741,-151.0,0.00023561,7]
[375275132,1753612260751,-196.94298028,0.00023561,2]
[375275133,1753612260762,-4686.83,0.00023561,2]
[375275134,1753612260771,-775.26,0.00023561,2]
[375275135,1753612260780,-611.59,0.00023561,2]
[375275136,1753612260789,-4052.25046811,0.00023561,2]
[375275137,1753612260920,-979.33953189,0.00023561,2]
[375275138,1753612260931,-500.0,0.00023561,2]
[375275139,1753612260942,-363.29118655,0.00023561,2]
[375275140,1753612260952,-535.45,0.00023561,2]
[375275141,1753612260962,-3527.67,0.00023561,2]
[375275142,1753612260972,-460.0,0.00023561,2]
[375275143,1753612260982,-614.29,0.00023561,2]
[375275144,1753612260991,-1827.36,0.00023561,2]
[375275145,1753612261001,-1887.82,0.00023561,2]
[375275146,1753612261011,-2214.31,0.00023561,2]
[375275147,1753612261020,-484.42,0.00023561,2]
[375275148,1753612261030,-599.1,0.00023561,2]
[375275149,1753612261040,-779.87,0.00023561,2]
[375275150,1753612261050,-1073.35,0.00023561,2]
[375275151,1753612261059,-520.92,0.00023561,2]
[375275152,1753612261068,-2106.4,0.00023561,2]
[375275153,1753612261078,-1603.91,0.00023561,2]
[375275154,1753612261088,-2725.78,0.00023561,2]
[375275155,1753612261098,-690.0,0.00023561,2]
[375275156,1753612261110,-1525.37,0.00023561,2]
[375275157,1753612261121,-982.37,0.00023561,2]
[375275158,1753612261131,-2043.29,0.00023561,2]
[375275159,1753612261140,-2245.93,0.00023561,2]
[375275160,1753612261149,-460.0,0.00023561,2]
[375275161,1753612261160,-460.0,0.00023561,2]
[375275162,1753612261169,-460.0,0.00023561,2]
[375275163,1753612261179,-2233.32,0.00023561,2]
[375275164,1753612261190,-635.65,0.00023561,2]
[375275165,1753612261201,-722.74,0.00023561,2]
[375275166,1753612261211,-627.07,0.00023561,2]
[375275167,1753612261221,-570.74,0.00023561,2]
[375275168,1753612261233,-562.3,0.00023561,2]
[375275169,1753612261252,-463.36,0.00023561,2]
[375275170,1753612261268,-460.0,0.00023561,2]
[375275171,1753612261278,-800.65,0.00023561,2]
[375275172,1753612261288,-482.48,0.00023561,2]
[375275173,1753612261298,-513.13,0.00023561,2]
[375275174,1753612261307,-692.74,0.00023561,2]
[375275175,1753612261317,-460.0,0.00023561,2]
[375275176,1753612261327,-522.56,0.00023561,2]
[375275177,1753612261336,-912.91,0.00023561,2]
[375275178,1753612261345,-2532.53,0.00023561,2]
[375275179,1753612261354,-485.0,0.00023562,2]
[375275180,1753612261364,-459.0,0.00023562,2]
[375275181,1753612261373,-280.53,0.00023591,2]
[375275182,1753612261382,-722.93,0.00023634,3]
[375275183,1753612261391,-3530.03203711,0.00023659,9]
[375275184,1753612261400,-2377.99961766,0.00023663,2]
[375275185,1753612261410,-151.0,0.00023668,7]
[375275186,1753612261419,-280.53,0.00023674,2]
[375275187,1753612261429,-154.526128,0.000237,9]
[375275188,1753612261438,-722.93,0.00023734,6]
[375275189,1753612261447,-760.0,0.00023752,2]
[375275190,1753612261456,-280.52,0.00023756,2]
[375275191,1753612261465,-2500.0,0.00023764,2]
[375275192,1753612261475,-348.42586761,0.00023764,2]
[375275193,1753612261485,-5000.0,0.00023781,3]
[375275194,1753612261494,-250.0,0.00023792,2]
[375275195,1753612261503,-361.25336145,0.00023798,2]
[375275196,1753612261513,-2158.0,0.00023825,2]
[375275197,1753612261522,-151.0,0.00023831,7]
[375275198,1753612261531,-151.0,0.00023831,7]
[375275199,1753612261541,-151.0,0.00023831,7]
[375275200,1753612261551,-151.0,0.00023831,7]
[375275201,1753612261560,-151.0,0.00023831,7]
[375275202,1753612261570,-319.188211,0.00023831,7]
[375275203,1753612261579,-319.188209,0.00023831,7]
[375275204,1753612261589,-3530.03203711,0.00023831,10]
[375275205,1753612261598,-722.93,0.00023834,3]
[375275206,1753612261607,-563.3,0.00023835,2]
[375275207,1753612261616,-586.19948426,0.00023835,2]
[375275208,1753612261625,-460.0,0.00023835,2]
[375275209,1753612261634,-838.11,0.00023835,2]
[375275210,1753612261643,-590.56,0.00023835,2]
[375275211,1753612261652,-716.54,0.00023835,2]
[375275212,1753612261661,-1103.32,0.00023835,2]
[375275213,1753612261670,-175.855063,0.00023835,7]
[375275214,1753612261679,-151.0,0.00023835,7]
[375275215,1753612261689,-4686.83,0.00023835,2]
[375275216,1753612261700,-151.0,0.00023835,7]
[375275217,1753612261709,-775.26,0.00023835,2]
[375275218,1753612261719,-611.59,0.00023835,2]
[375275219,1753612261728,-5031.59,0.00023835,2]
[375275220,1753612261736,-500.0,0.00023835,2]
[375275221,1753612261745,-535.45,0.00023835,2]
[375275222,1753612261754,-3527.67,0.00023835,2]
[375275223,1753612261763,-614.29,0.00023835,2]
[375275224,1753612261773,-1827.36,0.00023835,2]
[375275225,1753612261782,-1887.82,0.00023835,2]
[375275226,1753612261794,-460.0,0.00023835,2]
[375275227,1753612261804,-2214.31,0.00023835,2]
[375275228,1753612261814,-599.1,0.00023835,2]
[375275229,1753612261823,-779.87,0.00023835,2]
[375275230,1753612261833,-1073.35,0.00023835,2]
[375275231,1753612261842,-520.92,0.00023835,2]
[375275232,1753612261852,-2106.4,0.00023835,2]
[375275233,1753612261862,-1603.91,0.00023835,2]
[375275234,1753612261872,-2725.78,0.00023835,2]
[375275235,1753612261882,-690.0,0.00023835,2]
[375275236,1753612261891,-1525.37,0.00023835,2]
[375275237,1753612261901,-982.37,0.00023835,2]
[375275238,1753612261910,-2043.29,0.00023835,2]
[375275239,1753612261920,-2245.93,0.00023835,2]
[375275240,1753612262022,-460.0,0.00023835,2]
[375275241,1753612262032,-209.31159886,0.00023835,2]
[375275242,1753612262043,-508.91849398,0.00023835,2]
[375275243,1753612262052,-2233.32,0.00023835,2]
[375275244,1753612262062,-635.65,0.00023835,2]
[375275245,1753612262072,-722.74,0.00023835,2]
[375275246,1753612262081,-627.07,0.00023835,2]
[375275247,1753612262091,-570.74,0.00023835,2]
[375275248,1753612262102,-562.3,0.00023835,2]
[375275249,1753612262111,-463.36,0.00023835,2]
[375275250,1753612262121,-460.0,0.00023835,2]
[375275251,1753612262131,-800.65,0.00023835,2]
[375275252,1753612262140,-482.48,0.00023835,2]
[375275253,1753612262149,-513.13,0.00023835,2]
[375275254,1753612262159,-692.74,0.00023835,2]
[375275255,1753612262168,-460.0,0.00023835,2]
[375275256,1753612262177,-522.56,0.00023835,2]
[375275257,1753612262187,-912.91,0.00023835,2]
[375275258,1753612262196,-2532.53,0.00023835,2]
[375275259,1753612262206,-485.0,0.00023836,2]
[375275260,1753612262216,-459.0,0.00023836,2]
[375275261,1753612262226,-151.0,0.00023838,6]
[375275262,1753612262240,-206.0,0.0002387,2]
[375275263,1753612262252,-154.526128,0.00023872,2]
[375275264,1753612262262,-150.0,0.000239,2]
[375275265,1753612262272,-362.54,0.00023905,2]
[375275266,1753612262283,-722.93,0.00023934,3]
[375275267,1753612262294,-600.0,0.0002397,2]
[375275268,1753612262304,-161.0,0.00024,5]
[375275269,1753612262315,-160.0,0.00024,7]
[375275270,1753612262324,-160.0,0.00024,7]
[375275271,1753612262334,-231.30466539,0.00024,7]
[375275272,1753612262345,-12632.25855046,0.00024,3]
[375275273,1753612262354,-526.50274803,0.00024,3]
[375275274,1753612262364,-526.50274803,0.00024,7]
[375275275,1753612262374,-216.01841554,0.00024,3]
[375275276,1753612262383,-216.01841554,0.00024,7]
[375275277,1753612262393,-840.75038169,0.00024,3]
[375275278,1753612262402,-840.75038169,0.00024,7]
[375275279,1753612262412,-3530.03203711,0.00024003,10]
[375275280,1753612262421,-2377.99961766,0.00024004,2]
[375275281,1753612262431,-722.93,0.00024034,7]
[375275282,1753612262441,-800.0,0.00024034,2]
[375275283,1753612262451,-563.3,0.00024109,2]
[375275284,1753612262460,-264.503526,0.00024109,7]
[375275285,1753612262469,-460.0,0.00024109,2]
[375275286,1753612262479,-264.503526,0.00024109,7]
[375275287,1753612262488,-838.11,0.00024109,2]
[375275288,1753612262499,-590.56,0.00024109,2]
[375275289,1753612262508,-716.54,0.00024109,2]
[375275290,1753612262518,-1103.32,0.00024109,2]
[375275291,1753612262527,-151.0,0.00024109,7]
[375275292,1753612262537,-4686.83,0.00024109,2]
[375275293,1753612262547,-775.26,0.00024109,2]
[375275294,1753612262556,-611.59,0.00024109,2]
[375275295,1753612262565,-5031.59,0.00024109,2]
[375275296,1753612262575,-500.0,0.00024109,2]
[375275297,1753612262584,-535.45,0.00024109,2]
[375275298,1753612262594,-3527.67,0.00024109,2]
[375275299,1753612262603,-614.29,0.00024109,2]
[375275300,1753612262612,-1827.36,0.00024109,2]
[375275301,1753612262622,-1887.82,0.00024109,2]
[375275302,1753612262631,-460.0,0.00024109,2]
[375275303,1753612262641,-2214.31,0.00024109,2]
[375275304,1753612262650,-599.1,0.00024109,2]
[375275305,1753612262660,-779.87,0.00024109,2]
[375275306,1753612262669,-1073.35,0.00024109,2]
[375275307,1753612262679,-520.92,0.00024109,2]
[375275308,1753612262694,-2106.4,0.00024109,2]
[375275309,1753612262707,-1603.91,0.00024109,2]
[375275310,1753612262716,-2725.78,0.00024109,2]
[375275311,1753612262726,-690.0,0.00024109,2]
[375275312,1753612262735,-1525.37,0.00024109,2]
[375275313,1753612262745,-982.37,0.00024109,2]
[375275314,1753612262754,-2043.29,0.00024109,2]
[375275315,1753612262764,-2245.93,0.00024109,2]
[375275316,1753612262773,-502.39234388,0.00024109,2]
[375275317,1753612262783,-2233.32,0.00024109,2]
[375275318,1753612262793,-635.65,0.00024109,2]
[375275319,1753612262803,-722.74,0.00024109,2]
[375275320,1753612262812,-627.07,0.00024109,2]
[375275321,1753612262822,-619.36,0.00024109,2]
[375275322,1753612262832,-570.74,0.00024109,2]
[375275323,1753612262841,-562.3,0.00024109,2]
[375275324,1753612262851,-463.36,0.00024109,2]
[375275325,1753612262861,-460.0,0.00024109,2]
[375275326,1753612262870,-800.65,0.00024109,2]
[375275327,1753612262880,-482.48,0.00024109,2]
[375275328,1753612262889,-692.74,0.00024109,2]
[375275329,1753612262899,-460.0,0.00024109,2]
[375275330,1753612262909,-513.13,0.00024109,2]
[375275331,1753612262919,-522.56,0.00024109,2]
[375275332,1753612262928,-912.91,0.00024109,2]
[375275333,1753612262938,-2532.53,0.00024109,2]
[375275334,1753612262947,-485.0,0.0002411,2]
[375275335,1753612262957,-459.0,0.0002411,2]
[375275336,1753612262967,-500.0,0.00024111,2]
[375275337,1753612262976,-800.0,0.00024128,2]
[375275338,1753612262985,-600.0,0.00024129,2]
[375275339,1753612262995,-722.93,0.00024134,4]
[375275340,1753612263004,-800.0,0.00024154,2]
[375275341,1753612263013,-153.0,0.00024164,7]
[375275342,1753612263023,-3530.03203711,0.00024176,10]
[375275343,1753612263032,-3031.87,0.000242,7]
[375275344,1753612263043,-5500.3,0.000242,7]
[375275345,1753612263052,-998.37,0.000242,7]
[375275346,1753612263062,-600.0,0.0002422,2]
[375275347,1753612263072,-151.0,0.00024225,6]
[375275348,1753612263081,-722.93,0.00024234,3]
[375275349,1753612263091,-600.0,0.00024245,2]
[375275350,1753612263100,-600.0,0.00024247,2]
[375275351,1753612263110,-206.0,0.0002425,2]
[375275352,1753612263120,-500.0,0.00024254,2]
[375275353,1753612263130,-160.0,0.00024255,8]
[375275354,1753612263140,-860.0,0.000243,2]
[375275355,1753612263150,-238.92,0.0002431,2]
[375275356,1753612263159,-1500.0,0.00024312,2]
[375275357,1753612263169,-722.93,0.00024334,7]
[375275358,1753612263179,-600.0,0.00024339,2]
[375275359,1753612263189,-800.0,0.00024344,2]
[375275360,1753612263199,-2377.99961766,0.00024345,2]
[375275361,1753612263209,-151.0,0.00024348,7]
[375275362,1753612263218,-3530.03203711,0.00024348,11]
[375275363,1753612263229,-362.54,0.00024381,2]
[375275364,1753612263243,-563.3,0.00024383,2]
[375275365,1753612263253,-218.6238359,0.00024383,2]
[375275366,1753612263263,-838.11,0.00024383,2]
[375275367,1753612263272,-590.56,0.00024383,2]
[375275368,1753612263282,-716.54,0.00024383,2]
[375275369,1753612263292,-1103.32,0.00024383,2]
[375275370,1753612263302,-175.855063,0.00024383,7]
[375275371,1753612263311,-175.855063,0.00024383,7]
[375275372,1753612263322,-94.83132516,0.00024383,7]
[375275373,1753612263353,-500.0,0.00019999,2]
[375275374,1753612263363,-18.22565323,0.00024383,7]
[375275375,1753612263375,-37.94302161,0.00024383,7]
[375275376,1753612263384,-219.42334199,0.00024383,2]
[375275377,1753612289578,150.0,0.00018702,2]
[375275379,1753612362089,150.0,0.00018227,2]
[375275380,1753612432014,150.0,0.00018475,2]
[375275381,1753612502357,150.0,0.00018256,2]
[375275383,1753612537877,24.13592355,0.000189,2]
[375275384,1753612537898,278.5916519,0.000189,2]
[375275385,1753612572035,3725.99999999,0.0001895,2]
[375275386,1753612604183,350.973063,0.00013699,2]
[375275388,1753612642592,150.0,0.00018462,2]
[375275389,1753612655756,170.34535667,0.000189,2]
[375275390,1753612709502,150.0,0.00018222,2]
[375275391,1753612756889,15174.08992844,0.00018,2]
[375275392,1753612756911,20000.0,0.00018,2]
[375275393,1753612756944,20000.0,0.00018,2]
[375275394,1753612756968,13091.25232986,0.00018,2]
[375275395,1753612776093,-155.56805297,0.00018989,2]
[375275396,1753612776115,-300.0,0.00019076,2]
[375275397,1753612776138,-300.0,0.00019077,2]
[375275398,1753612776160,-1200.0,0.00019077,2]
[375275399,1753612776180,-300.0,0.00019077,2]
[375275400,1753612776200,-1200.0,0.00019077,2]
[375275401,1753612776221,-25231.43194703,0.00019078,2]
[375275402,1753612781453,5000.0,0.0001895,2]
[375275404,1753612919809,150.0,0.00018897,2]
[375275405,1753612986133,150.0,0.00018868,2]
[375275406,1753613059878,150.0,0.00018554,2]
[375275407,1753613093868,704.707754,0.0001822,2]
[375275408,1753613125897,150.0,0.00018333,2]
[375275409,1753613138100,-300.0,0.00019077,2]
[375275410,1753613138123,-1200.0,0.00019077,2]
[375275411,1753613138145,-300.0,0.00019077,2]
[375275412,1753613138167,-300.0,0.00019077,2]
[375275413,1753613138188,-300.0,0.00019077,2]
[375275414,1753613138208,-293.0,0.00019077,2]
[375275415,1753613138229,-1759.38966378,0.00019078,2]
[375275416,1753613159088,604.03991614,0.0001833,2]
[375275417,1753613159111,20000.0,0.0001833,2]
[375275418,1753613159133,4295.96008386,0.0001833,2]
[375275419,1753613190218,150.0,0.00018269,2]
[375275420,1753613237099,-162.49589699,0.00019073,2]
[375275421,1753613237121,-831.0,0.00019077,2]
[375275422,1753613237142,-300.0,0.00019077,2]
[375275423,1753613237164,-3204.80787897,0.00019078,2]
[375275424,1753613353977,195.510967,0.000189,2]
[375275425,1753613384987,1552.4121716,0.00018219,2]
[375275441,1753613432075,-300.0,0.00019077,2]
[375275442,1753613432085,-774.74166481,0.00019078,2]
[375275443,1753613432129,-7373.39563043,0.00019078,2]
[375275444,1753613432141,-3271.21629627,0.00019078,2]
[375275445,1753613432183,-2668.15318134,0.00019078,2]
[375275446,1753613432196,-469.06740568,0.00019078,2]
[375275447,1753613432205,-196.72,0.00019168,3]
[375275448,1753613432215,-500.0,0.00019173,2]
[375275449,1753613432224,-300.50398729,0.00019173,2]
[375275450,1753613432234,-364.95972321,0.00019173,2]
[375275451,1753613432244,-18102.67183352,0.00019173,2]
[375275453,1753613432254,-500.0,0.00019173,2]
[375275455,1753613432265,-500.0,0.00019173,2]
[375275457,1753613432274,-500.40172608,0.00019173,2]
[375275459,1753613432283,-500.0,0.00019173,2]
[375275461,1753613432293,-500.0,0.00019173,2]
[375275463,1753613432302,-505.205901,0.00019173,2]
[375275465,1753613432311,-503.36843688,0.00019173,2]
[375275467,1753613432320,-500.0,0.00019173,2]
[375275469,1753613432329,-501.1678831,0.00019173,2]
[375275471,1753613432339,-500.0,0.00019173,2]
[375275473,1753613432348,-302.75975385,0.00019173,2]
[375275475,1753613432358,-500.0,0.00019173,2]
[375275477,1753613432367,-500.0,0.00019173,2]
[375275479,1753613432377,-500.71262026,0.00019173,2]
[375275481,1753613432386,-593.74301606,0.00019173,2]
[375275483,1753613432395,-500.98550011,0.00019173,2]
[375275485,1753613432405,-502.37147298,0.00019173,2]
[375275487,1753613432414,-500.54883486,0.00019173,2]
[375275489,1753613432424,-500.0,0.00019173,2]
[375275491,1753613432435,-155.0,0.00019177,2]
[375275493,1753613432445,-500.0,0.00019177,2]
[375275495,1753613432455,-227.09883146,0.00019177,2]
[375275497,1753613432465,-500.0,0.00019177,2]
[375275499,1753613432475,-500.0,0.00019177,2]
[375275501,1753613432485,-267.03072537,0.00019177,2]
[375275503,1753613432494,-500.0,0.00019177,2]
[375275505,1753613432504,-500.0,0.00019177,2]
[375275507,1753613432515,-500.0,0.00019177,2]
[375275510,1753613432525,-529.49807879,0.00019177,2]
[375275511,1753613432535,-500.0,0.00019177,2]
[375275514,1753613432544,-479.6070839,0.00019177,2]
[375275515,1753613432553,-382.80473508,0.00019177,2]
[375275517,1753613432563,-500.0,0.00019177,2]
[375275519,1753613432573,-500.0,0.00019177,2]
[375275522,1753613432582,-500.0,0.00019177,2]
[375275524,1753613432592,-511.9808262,0.00019177,2]
[375275525,1753613432602,-500.0,0.00019177,2]
[375275527,1753613432613,-500.0,0.00019177,2]
[375275529,1753613432624,-418.09966352,0.00019177,2]
[375275531,1753613432635,-167.51731472,0.00019177,2]
[375275533,1753613432644,-412.18211954,0.00019177,2]
[375275535,1753613432654,-162.33924149,0.00019177,2]
[375275537,1753613432664,-500.0,0.00019177,2]
[375275539,1753613432673,-500.0,0.00019177,2]
[375275541,1753613432683,-311.94192028,0.00019177,2]
[375275543,1753613432692,-460.0,0.00019178,2]
[375275545,1753613432703,-460.0,0.00019178,2]
[375275547,1753613432712,-462.82244201,0.00019178,2]
[375275549,1753613432721,-460.0,0.00019178,2]
[375275551,1753613432730,-460.0,0.00019178,2]
[375275553,1753613432740,-460.0,0.00019178,2]
[375275555,1753613432749,-460.0,0.00019178,2]
[375275556,1753613432759,-460.0,0.00019178,2]
[375275557,1753613432768,-460.0,0.00019178,2]
[375275558,1753613432779,-460.0,0.00019178,2]
[375275559,1753613432789,-460.0,0.00019178,2]
[375275561,1753613432799,-460.0,0.00019178,2]
[375275563,1753613432808,-460.0,0.00019178,2]
[375275565,1753613432817,-460.0,0.00019178,2]
[375275567,1753613432827,-460.0,0.00019178,2]
[375275569,1753613432836,-460.0,0.00019178,2]
[375275571,1753613432846,-667.61,0.00019178,2]
[375275573,1753613432855,-460.0,0.00019178,2]
[375275575,1753613432865,-460.0,0.00019178,2]
[375275577,1753613432874,-460.0,0.00019178,2]
[375275579,1753613432883,-460.0,0.00019178,2]
[375275581,1753613432893,-460.0,0.00019178,2]
[375275583,1753613432902,-374.56004623,0.00019178,2]
[375275618,1753613438034,-85.43995377,0.00019178,2]
[375275619,1753613438146,-465.73346958,0.00019178,2]
[375275620,1753613438155,-460.0,0.00019178,2]
[375275621,1753613438164,-460.0,0.00019178,2]
[375275622,1753613438174,-460.0,0.00019178,2]
[375275623,1753613438183,-460.0,0.00019178,2]
[375275624,1753613438192,-185.03717849,0.00019178,2]
[375275625,1753613438201,-460.0,0.00019178,2]
[375275626,1753613438210,-460.0,0.00019178,2]
[375275627,1753613438219,-460.0,0.00019178,2]
[375275628,1753613438228,-460.0,0.00019178,2]
[375275629,1753613438237,-460.0,0.00019178,2]
[375275630,1753613438247,-537.20038046,0.00019178,2]
[375275631,1753613438256,-460.0,0.00019178,2]
[375275632,1753613438267,-460.0,0.00019178,2]
[375275633,1753613438276,-460.0,0.00019178,2]
[375275634,1753613438285,-460.0,0.00019178,2]
[375275635,1753613438294,-326.7890177,0.00019178,2]
[375275636,1753613438534,-133.2109823,0.00019178,2]
[375275637,1753613438543,-361.49898034,0.00019178,2]
[375275638,1753613438567,-98.50101966,0.00019178,2]
[375275639,1753613438576,-460.0,0.00019178,2]
[375275640,1753613438585,-460.0,0.00019178,2]
[375275641,1753613438594,-460.0,0.00019178,2]
[375275642,1753613438603,-460.0,0.00019178,2]
[375275643,1753613438612,-460.0,0.00019178,2]
[375275644,1753613438621,-460.0,0.00019178,2]
[375275645,1753613438631,-460.0,0.00019178,2]
[375275646,1753613438640,-460.0,0.00019178,2]
[375275647,1753613438650,-460.0,0.00019178,2]
[375275648,1753613438660,-460.81711192,0.00019178,2]
[375275649,1753613438669,-460.0,0.00019178,2]
[375275650,1753613438678,-460.0,0.00019178,2]
[375275651,1753613438687,-460.0,0.00019178,2]
[375275652,1753613438697,-460.0,0.00019178,2]
[375275653,1753613438706,-460.0,0.00019178,2]
[375275654,1753613438715,-460.0,0.00019178,2]
[375275655,1753613438724,-460.0,0.00019178,2]
[375275656,1753613438733,-460.0,0.00019178,2]
[375275657,1753613438743,-460.0,0.00019178,2]
[375275658,1753613438752,-424.15732805,0.00019178,2]
[375275659,1753613438761,-460.0,0.00019178,2]
[375275660,1753613438772,-460.0,0.00019178,2]
[375275661,1753613438781,-460.0,0.00019178,2]
[375275662,1753613438790,-460.0,0.00019178,2]
[375275663,1753613438799,-460.0,0.00019178,2]
[375275664,1753613438808,-460.0,0.00019178,2]
[375275665,1753613438817,-460.0,0.00019178,2]
[375275666,1753613438826,-460.0,0.00019178,2]
[375275667,1753613438835,-460.0,0.00019178,2]
[375275668,1753613438845,-460.0,0.00019178,2]
[375275669,1753613438855,-460.0,0.00019178,2]
[375275670,1753613438864,-460.0,0.00019178,2]
[375275671,1753613438873,-460.0,0.00019178,2]
[375275672,1753613438883,-461.91143922,0.00019178,2]
[375275673,1753613438892,-460.0,0.00019178,2]
[375275674,1753613438901,-460.0,0.00019178,2]
[375275675,1753613438910,-460.0,0.00019178,2]
[375275676,1753613438919,-460.0,0.00019178,2]
[375275677,1753613438931,-460.0,0.00019178,2]
[375275678,1753613438940,-460.0,0.00019178,2]
[375275679,1753613438950,-460.0,0.00019178,2]
[375275680,1753613438960,-460.0,0.00019178,2]
[375275681,1753613438969,-460.0,0.00019178,2]
[375275682,1753613438979,-460.0,0.00019178,2]